bitfinex/quotes_SOLUSD_20240607
["timestamp","ask_amount","ask_price","bid_price","bid_amount"]
[1717799543049,8.521,162.75,162.64,22.9512103]
[1717799543252,6.68,162.68,162.65,22.1215]
[1717799544065,6.68,162.69,162.65,22.1215]
[1717799545176,20.7335,162.74,162.65,22.1215]
[1717799545344,6.68,162.69,162.65,22.1215]
[1717799546161,6.68,162.68,162.64,0.8297103]
[1717799547663,6.68,162.68,162.64,7.0816103]
[1717799548038,6.68,162.68,162.64,0.8297103]
[1717799548364,6.68,162.67,162.64,0.8297103]
[1717799548660,26.72,162.72,162.64,0.8297103]
[1717799549841,45.18,162.72,162.64,0.8297103]
[1717799551539,47.4538,162.72,162.64,0.8297103]
[1717799552660,45.18,162.72,162.64,0.8297103]
[1717799552853,6.68,162.66,162.64,0.8297103]
[1717799553047,6.68,162.65,162.64,0.8297103]
[1717799557075,25.14,162.65,162.64,0.8297103]
[1717799557280,78.8783,162.65,162.64,0.8297103]
[1717799558456,78.96969153,162.65,162.64,0.8297103]
[1717799558874,76.69489153,162.65,162.64,0.8297103]
[1717799559177,78.96969153,162.65,162.64,0.8297103]
[1717799563372,72.50619153,162.65,162.64,0.8297103]
[1717799563686,27.50619153,162.65,162.64,0.8297103]
[1717799567389,72.50619153,162.65,162.64,0.8297103]
[1717799567579,27.50619153,162.65,162.64,0.8297103]
[1717799567885,25.23139153,162.65,162.64,0.8297103]
[1717799568083,0.09139153,162.65,162.64,0.8297103]
[1717799568393,6.68,162.65,162.64,0.8297103]
[1717799568569,6.68,162.66,162.64,0.8297103]
[1717799568890,2.36549153,162.7,162.64,0.8297103]
[1717799569082,6.68,162.66,162.64,0.8297103]
[1717799571089,6.68,162.65,162.64,0.8297103]
[1717799572085,20.82549153,162.7,162.64,0.8297103]
[1717799572289,6.68,162.65,162.64,0.8297103]
[1717799573084,6.68,162.66,162.64,0.8297103]
[1717799575673,6.68,162.67,162.64,0.8297103]
[1717799576570,6.68,162.66,162.64,0.8297103]
[1717799578292,0.09139153,162.7,162.64,0.8297103]
[1717799578589,6.68,162.66,162.64,0.8297103]
[1717799584278,6.68,162.67,162.64,0.8297103]
[1717799586195,28.09390008,162.71,162.64,0.8297103]
[1717799586402,6.68,162.67,162.64,0.8297103]
[1717799587597,6.68,162.66,162.64,0.8297103]
[1717799588473,6.68,162.65,162.64,0.8297103]
[1717799598306,18.46,162.7,162.64,0.8297103]
[1717799598603,6.68,162.65,162.64,0.8297103]
[1717799601183,25.82000008,162.71,162.64,0.8297103]
[1717799601477,6.68,162.66,162.64,0.8297103]
[1717799601903,6.68,162.67,162.64,7.2301103]
[1717799602096,6.68,162.69,162.64,7.2301103]
[1717799602406,6.68,162.69,162.65,21.8849]
[1717799603603,2.2737,162.73,162.65,21.8849]
[1717799603784,20.82489153,162.74,162.65,21.8849]
[1717799604105,6.68,162.69,162.65,21.8849]
[1717799606208,2.2737,162.73,162.65,21.8849]
[1717799606403,6.68,162.69,162.65,21.8849]
[1717799606602,6.68,162.68,162.65,21.8849]
[1717799606994,6.68,162.68,162.64,0.8297103]
[1717799607501,6.68,162.67,162.64,0.8297103]
[1717799608102,6.68,162.68,162.64,0.8297103]
[1717799608908,6.68,162.66,162.64,0.8297103]
[1717799609115,6.68,162.65,162.64,0.8297103]
[1717799655039,18.46,162.67,162.64,0.8297103]
[1717799655241,6.68,162.65,162.64,0.8297103]
[1717799661347,25.14,162.65,162.64,0.8297103]
[1717799662654,31.82,162.65,162.64,0.8297103]
[1717799663275,25.14,162.65,162.64,0.8297103]
[1717799671685,27.4148,162.65,162.64,0.8297103]
[1717799671880,79.0948,162.65,162.64,0.8297103]
[1717799680507,18.46,162.62,162.57,21.8364]
[1717799680819,6.68,162.58,162.57,21.8364]
[1717799685003,6.68,162.58,162.57,6.279]
[1717799685707,6.68,162.58,162.55,981.15165128]
[1717799685913,6.68,162.58,162.55,996.62315128]
[1717799686094,18.46,162.62,162.55,996.62315128]
[1717799686508,6.68,162.57,162.55,996.62315128]
[1717799687417,6.68,162.56,162.55,996.62315128]
[1717799687619,6.68,162.57,162.55,996.62315128]
[1717799688198,18.46,162.62,162.55,996.62315128]
[1717799688417,6.68,162.57,162.55,996.62315128]
[1717799691216,6.68,162.56,162.55,975.00825128]
[1717799694428,20.7358,162.58,162.55,975.00825128]
[1717799694721,6.68,162.56,162.55,975.00825128]
[1717799702211,7.36000008,162.61,162.55,975.00825128]
[1717799702410,6.68,162.56,162.55,977.28445128]
[1717799702631,2.2752,162.62,162.57,2.2758]
[1717799702806,6.68,162.58,162.57,2.2758]
[1717799704815,6.68,162.58,162.55,975.00825128]
[1717799705035,6.68,162.56,162.55,975.00825128]
[1717799710728,20.7354,162.61,162.55,975.00825128]
[1717799710927,6.68,162.56,162.55,975.00825128]
[1717799715136,6.68,162.56,162.55,981.04875128]
[1717799715836,6.68,162.61,162.55,996.40205128]
[1717799716131,6.68,162.61,162.55,1003.08205128]
[1717799716930,26.00109986,162.65,162.55,1003.08205128]
[1717799717131,6.68,162.61,162.55,1003.08205128]
[1717799718750,26.00109986,162.65,162.55,1003.08205128]
[1717799719043,6.68,162.61,162.55,1003.08205128]
[1717799720539,6.68,162.6,162.56,22.8311]
[1717799720720,20.91589978,162.65,162.57,22.8311]
[1717799721042,6.68,162.6,162.57,22.8311]
[1717799721647,6.68,162.61,162.57,22.8311]
[1717799723139,6.68,162.61,162.57,16.4861]
[1717799723323,6.68,162.61,162.57,22.8311]
[1717799724046,2.2747,162.66,162.57,22.8311]
[1717799724228,45.0,162.66,162.58,22.8311]
[1717799724428,6.68,162.63,162.57,6.68]
[1717799724734,6.68,162.63,162.57,29.5111]
[1717799725448,6.68,162.62,162.56,23.1661]
[1717799725650,6.68,162.62,162.59,22.8311]
[1717799726761,6.68,162.62,162.59,6.345]
[1717799727128,6.68,162.62,162.55,1004.51935128]
[1717799731339,2.2748,162.65,162.55,997.83935128]
[1717799731656,6.68,162.61,162.55,997.83935128]
[1717799731833,6.68,162.61,162.55,1004.51935128]
[1717799736770,6.68,162.61,162.55,997.83935128]
[1717799737276,6.68,162.61,162.55,1004.51935128]
[1717799744082,6.68,162.61,162.55,997.83935128]
[1717799744289,6.68,162.61,162.55,1004.51935128]
[1717799745576,2.2748,162.65,162.55,1004.51935128]
[1717799745791,6.68,162.61,162.55,997.83935128]
[1717799746768,6.68,162.6,162.55,975.00825128]
[1717799746971,6.68,162.59,162.55,975.00825128]
[1717799748394,6.68,162.6,162.55,975.00825128]
[1717799749493,6.68,162.61,162.55,975.00825128]
[1717799749684,6.68,162.61,162.55,981.68825128]
[1717799750698,6.68,162.61,162.55,975.00825128]
[1717799759107,47.2747,162.66,162.55,981.68825128]
[1717799759284,6.68,162.63,162.56,6.68]
[1717799760778,2.2746,162.66,162.56,6.68]
[1717799761003,6.68,162.63,162.57,6.68]
[1717799763292,6.68,162.64,162.58,6.68]
[1717799763605,11.26271184,162.69,162.61,6.68]
[1717799763802,6.68,162.67,162.61,6.68]
[1717799764007,6.68,162.68,162.62,6.68]
[1717799764410,6.2522,162.72,162.63,6.68]
[1717799764607,6.68,162.7,162.64,6.68]
[1717799765116,5.48921262,162.74,162.65,6.68]
[1717799765313,6.68,162.71,162.65,6.68]
[1717799765795,5.48921262,162.74,162.65,6.68]
[1717799766002,6.68,162.72,162.66,6.68]
[1717799767385,8.5255,162.76,162.66,6.68]
[1717799767586,6.68,162.73,162.66,6.68]
[1717799768225,415.31520008,162.8,162.64,6.3413]
[1717799768226,19.889,162.8,162.64,6.3413]
[1717799768507,2.2732,162.77,162.67,6.68]
[1717799768702,6.68,162.73,162.67,6.68]
[1717799768901,6.68,162.73,162.67,28.1607]
[1717799769414,6.68,162.73,162.67,21.4807]
[1717799769590,6.68,162.72,162.67,21.4807]
[1717799770388,6.68,162.71,162.67,21.4807]
[1717799770886,6.68,162.73,162.67,6.68]
[1717799771326,6.68,162.72,162.66,28.1607]
[1717799772196,6.68,162.72,162.66,21.4807]
[1717799772400,20.7331,162.77,162.62,21.4807]
[1717799772401,6.68,162.7,162.62,21.4807]
[1717799772611,6.68,162.69,162.63,6.68]
[1717799772908,2.2735,162.75,162.63,6.68]
[1717799773110,6.68,162.7,162.63,6.68]
[1717799774316,2.2733,162.76,162.64,6.68]
[1717799774614,6.68,162.7,162.64,6.68]
[1717799775686,6.68,162.69,162.62,21.4807]
[1717799775894,6.68,162.69,162.63,6.68]
[1717799776413,6.68,162.69,162.62,28.1607]
[1717799776613,6.68,162.68,162.62,28.1607]
[1717799777011,6.68,162.68,162.62,21.4807]
[1717799777191,6.68,162.68,162.62,28.1607]
[1717799777395,25.0705,162.75,162.62,21.4807]
[1717799777396,6.68,162.67,162.62,21.4807]
[1717799777792,25.14,162.72,162.62,21.4807]
[1717799777993,6.68,162.66,162.62,21.4807]
[1717799778316,25.14,162.72,162.62,21.4807]
[1717799778317,45.18,162.72,162.62,21.4807]
[1717799778493,26.72,162.72,162.62,21.4807]
[1717799778694,6.68,162.68,162.62,28.1607]
[1717799779825,6.68,162.69,162.63,6.68]
[1717799781997,6.68,162.68,162.62,28.1607]
[1717799782198,6.68,162.67,162.62,21.4807]
[1717799783215,25.14,162.72,162.62,21.4807]
[1717799783401,28.9939,162.72,162.62,21.4807]
[1717799784218,28.9939,162.72,162.62,28.1607]
[1717799784517,26.72,162.72,162.62,28.1607]
[1717799785220,6.68,162.68,162.62,28.1607]
[1717799785601,2.2737,162.73,162.62,28.1607]
[1717799785808,6.68,162.68,162.62,28.1607]
[1717799794630,2.2737,162.73,162.63,6.68]
[1717799794823,6.68,162.7,162.64,6.68]
[1717799794999,0.06003343,162.74,162.65,6.68]
[1717799795332,6.68,162.73,162.67,6.68]
[1717799796821,6.68,162.72,162.67,29.0434]
[1717799797140,6.68,162.71,162.67,22.3634]
[1717799798031,6.68,162.71,162.68,6.4667]
[1717799798252,2.33303343,162.78,162.68,22.3634]
[1717799798413,6.68,162.73,162.69,22.3634]
[1717799801433,6.68,162.74,162.7,6.4667]
[1717799802833,2.33303343,162.78,162.7,6.4667]
[1717799803041,6.68,162.74,162.7,6.4667]
[1717799804156,6.68,162.74,162.68,15.8967]
[1717799804438,2.33303343,162.78,162.68,15.8967]
[1717799804745,6.68,162.74,162.68,15.8967]
[1717799814524,2.2731,162.77,162.68,15.8967]
[1717799814823,0.06003343,162.78,162.68,15.8967]
[1717799815250,6.68,162.74,162.68,15.8967]
[1717799815631,2.33303343,162.78,162.68,15.8967]
[1717799815951,6.68,162.74,162.68,15.8967]
[1717799817353,2.33303343,162.78,162.68,15.8967]
[1717799817538,6.68,162.74,162.68,15.8967]
[1717799818742,0.06003343,162.78,162.68,15.8967]
[1717799818945,7.73323729,162.8,162.7,6.68]
[1717799819125,6.68,162.77,162.68,15.8967]
[1717799819331,6.68,162.77,162.71,6.68]
[1717799820560,6.68,162.76,162.7,6.68]
[1717799821640,6.68,162.75,162.69,6.68]
[1717799827868,6.68,162.76,162.69,6.68]
[1717799828355,6.68,162.75,162.69,6.68]
[1717799828837,6.68,162.75,162.68,15.8967]
[1717799829134,6.68,162.75,162.69,6.68]
[1717799830259,6.68,162.76,162.69,6.68]
[1717799832465,5.46053729,162.8,162.7,6.68]
[1717799832758,6.68,162.77,162.7,6.68]
[1717799833548,6.68,162.77,162.68,15.8967]
[1717799833746,6.68,162.77,162.7,6.68]
[1717799838271,6.68,162.77,162.71,6.68]
[1717799838449,13.34584162,162.82,162.73,6.68]
[1717799838652,11.07344162,162.82,162.75,6.68]
[1717799838856,11.07344162,162.83,162.75,6.68]
[1717799839057,6.68,162.81,162.75,6.68]
[1717799839750,6.68,162.82,162.76,6.68]
[1717799840156,263.89277072,162.84,162.75,6.68]
[1717799840458,6.68,162.81,162.75,6.68]
[1717799841076,6.68,162.8,162.74,13.1941]
[1717799846153,2.2723,162.83,162.74,13.1941]
[1717799846352,6.68,162.8,162.74,13.1941]
[1717799849253,6.68,162.8,162.74,6.5141]
[1717799849561,6.68,162.76,162.7,28.393]
[1717799850098,6.68,162.77,162.71,6.68]
[1717799850877,20.7325,162.82,162.71,6.68]
[1717799851084,6.68,162.77,162.71,6.68]
[1717799851676,6.68,162.77,162.72,6.68]
[1717799851979,6.68,162.77,162.72,29.8696]
[1717799853385,6.68,162.77,162.72,23.1896]
[1717799853758,2.2726,162.81,162.72,23.1896]
[1717799853759,6.68,162.76,162.72,23.1896]
[1717799854189,6.68,162.75,162.72,6.6487]
[1717799854477,6.68,162.75,162.68,23.1896]
[1717799854677,6.68,162.74,162.68,29.8696]
[1717799854870,6.68,162.75,162.69,6.68]
[1717799855479,6.68,162.75,162.68,23.1896]
[1717799855677,6.68,162.75,162.69,6.68]
[1717799856968,6.68,162.74,162.68,23.1896]
[1717799857172,6.68,162.73,162.69,6.6487]
[1717799858266,2.273,162.78,162.69,6.6487]
[1717799858469,6.68,162.73,162.69,6.6487]
[1717799860781,6.68,162.74,162.69,6.6487]
[1717799862286,2.2729,162.79,162.69,6.6487]
[1717799862477,6.68,162.74,162.69,6.6487]
[1717799869187,6.68,162.74,162.69,22.8945]
[1717799869390,6.68,162.74,162.7,6.2689]
[1717799875982,20.7329,162.79,162.7,6.2689]
[1717799876318,6.68,162.74,162.7,6.2689]
[1717799884622,6.68,162.72,162.65,21.8512]
[1717799884794,6.68,162.7,162.65,21.8512]
[1717799885691,18.46,162.76,162.65,21.8512]
[1717799885692,6.68,162.69,162.65,21.8512]
[1717799892821,6.68,162.7,162.65,21.8512]
[1717799896626,8.4799,162.77,162.66,21.4477]
[1717799896831,6.68,162.73,162.67,6.68]
[1717799897126,6.68,162.74,162.68,6.68]
[1717799898728,6.68,162.74,162.67,6.68]
[1717799898920,6.68,162.73,162.67,6.68]
[1717799902834,6.68,162.74,162.67,6.68]
[1717799904421,6.68,162.74,162.66,21.4477]
[1717799905736,649.8832,162.81,162.66,21.4477]
[1717799906041,11.07485523,162.8,162.7,6.68]
[1717799906347,6.68,162.76,162.7,6.68]
[1717799908241,6.68,162.76,162.71,6.0237]
[1717799908422,6.68,162.77,162.71,6.68]
[1717799908622,643.6,162.81,162.72,12.7037]
[1717799908921,6.68,162.78,162.72,12.7037]
[1717799909341,6.68,162.77,162.71,6.68]
[1717799909533,6.68,162.77,162.71,12.7037]
[1717799914238,645.8725,162.81,162.71,12.7037]
[1717799914439,6.68,162.77,162.71,12.7037]
[1717799917621,652.5525,162.81,162.71,12.7037]
[1717799917827,6.68,162.76,162.71,21.823]
[1717799922143,650.28,162.81,162.71,21.823]
[1717799922351,670.32,162.81,162.71,21.823]
[1717799922639,670.32,162.81,162.71,28.503]
[1717799926757,672.5925,162.81,162.71,28.503]
[1717799927456,645.8725,162.81,162.71,28.503]
[1717799927654,6.68,162.77,162.71,28.503]
[1717799931062,416.4925,162.81,162.71,28.503]
[1717799932861,6.68,162.77,162.71,28.503]
[1717799937368,6.68,162.77,162.71,21.823]
[1717799937670,6.68,162.77,162.71,28.503]
[1717799940366,6.68,162.8,162.73,6.68]
[1717799940761,6.68,162.8,162.74,6.68]
[1717799941272,6.68,162.79,162.73,6.68]
[1717799942369,6.68,162.79,162.71,21.823]
[1717799942573,6.68,162.79,162.73,6.68]
[1717799942970,2.2723,162.83,162.72,6.68]
[1717799943268,6.68,162.77,162.71,28.503]
[1717799945550,41.28603072,162.86,162.73,22.6048]
[1717799945551,8.8241,162.86,162.73,22.6048]
[1717799945755,6.68,162.82,162.76,6.68]
[1717799946155,6.68,162.83,162.77,6.68]
[1717799947371,389.7716,162.88,162.77,6.68]
[1717799947577,6.68,162.84,162.78,12.6873]
[1717799947773,6.68,162.85,162.79,6.68]
[1717799948778,2.2716,162.88,162.78,6.0073]
[1717799948779,6.68,162.83,162.78,6.0073]
[1717799948969,6.68,162.82,162.78,6.0073]
[1717799951581,6.68,162.82,162.78,21.9446]
[1717799951767,6.68,162.82,162.79,13.79707085]
[1717799953177,6.68,162.83,162.79,13.79707085]
[1717799953380,20.7216,162.88,162.79,13.79707085]
[1717799953581,6.68,162.83,162.79,13.79707085]
[1717799958487,6.68,162.83,162.78,21.9446]
[1717799958681,6.68,162.82,162.78,21.9446]
[1717799961195,2.2717,162.87,162.78,21.9446]
[1717799961400,6.68,162.82,162.78,21.9446]
[1717799961771,6.68,162.83,162.78,21.9446]
[1717799963500,2.2716,162.88,162.79,21.9839]
[1717799963677,6.68,162.84,162.79,21.9839]
[1717799973110,2.2716,162.88,162.8,21.3298]
[1717799973308,6.68,162.84,162.8,21.3298]
[1717799975596,8.2943,162.9,162.8,28.0098]
[1717799975800,2.2715,162.89,162.8,28.0098]
[1717799976001,6.68,162.86,162.8,28.0098]
[1717799976892,6.0229,162.9,162.8,28.0098]
[1717799977097,6.68,162.86,162.8,28.0098]
[1717799977499,8.2942,162.9,162.8,28.0098]
[1717799977799,6.68,162.86,162.8,28.0098]
[1717799977980,6.68,162.87,162.81,6.68]
[1717799978185,389.7712,162.91,162.81,6.68]
[1717799978592,6.68,162.87,162.81,6.68]
[1717799981818,387.5,162.91,162.81,6.68]
[1717799981992,387.5,162.91,162.83,6.68]
[1717799982202,6.68,162.89,162.84,6.68]
[1717799982398,387.5,162.91,162.84,6.68]
[1717799982399,387.5,162.91,162.85,21.3298]
[1717799982721,6.68,162.89,162.85,21.3298]
[1717799982899,6.68,162.88,162.85,21.3298]
[1717799983102,6.68,162.88,162.85,6.265]
[1717799985417,6.68,162.88,162.82,6.68]
[1717799995022,6.68,162.87,162.81,28.0098]
[1717799995333,387.5,162.91,162.81,21.3298]
[1717799995523,6.68,162.86,162.82,6.3612]
[1717799996117,6.68,162.85,162.74,21.5292]
[1717799996310,6.68,162.84,162.78,6.68]
[1717799997326,6.68,162.84,162.74,21.5292]
[1717799997509,6.68,162.84,162.78,6.68]
[1717799999220,6.68,162.85,162.79,6.68]
[1717800000528,6.68,162.85,162.74,21.5292]
[1717800000731,6.68,162.84,162.78,6.68]
[1717800001631,15.0215,162.9,162.79,6.68]
[1717800001821,6.68,162.85,162.79,6.68]
[1717800002321,35.0615,162.9,162.79,6.68]
[1717800002520,32.7902,162.9,162.79,6.68]
[1717800002730,6.68,162.86,162.8,6.68]
[1717800008061,15.0215,162.9,162.74,21.5292]
[1717800008062,6.68,162.85,162.79,6.68]
[1717800008360,6.68,162.81,162.74,21.5292]
[1717800008537,6.68,162.81,162.75,6.68]
[1717800010227,6.68,162.82,162.76,6.68]
[1717800011023,2.2718,162.87,162.77,6.68]
[1717800011222,6.68,162.83,162.77,6.68]
[1717800012926,2.2716,162.88,162.74,21.5292]
[1717800013229,2.2715,162.89,162.78,6.68]
[1717800013433,6.68,162.84,162.78,6.68]
[1717800014328,6.68,162.83,162.77,6.68]
[1717800018141,6.68,162.85,162.79,6.68]
[1717800018658,2.2715,162.89,162.74,21.5292]
[1717800018659,6.68,162.86,162.8,6.68]
[1717800020033,6.68,162.85,162.79,6.68]
[1717800020238,6.68,162.85,162.74,21.5292]
[1717800020538,6.68,162.84,162.78,6.68]
[1717800024744,2.2716,162.88,162.78,6.68]
[1717800024948,6.68,162.85,162.78,6.68]
[1717800028472,2.2716,162.88,162.78,6.68]
[1717800028643,6.68,162.85,162.78,6.68]
[1717800029876,2.2716,162.88,162.74,21.5292]
[1717800029877,6.68,162.83,162.74,21.5292]
[1717800030083,6.68,162.83,162.77,6.68]
[1717800031676,6.68,162.83,162.74,21.5292]
[1717800031844,6.68,162.83,162.77,6.68]
[1717800032177,6.68,162.82,162.76,6.68]
[1717800032883,6.68,162.82,162.73,13.80215795]
[1717800032884,6.68,162.78,162.73,13.80215795]
[1717800033166,6.68,162.77,162.73,13.80215795]
[1717800034658,6.68,162.78,162.73,13.80215795]
[1717800034873,6.3179,162.77,162.67,11.06024978]
[1717800035169,6.68,162.72,162.67,11.06024978]
[1717800039373,8.66690676,162.77,162.67,11.06024978]
[1717800039583,6.68,162.72,162.67,11.06024978]
[1717800040175,6.68,162.73,162.67,17.74024978]
[1717800040978,0.07580676,162.76,162.67,17.74024978]
[1717800041278,6.68,162.73,162.67,17.74024978]
[1717800042483,2.273,162.78,162.67,11.06024978]
[1717800042672,6.68,162.76,162.7,6.68]
[1717800043183,6.68,162.74,162.68,13.1975]
[1717800043371,6.68,162.74,162.68,6.5175]
[1717800043566,6.68,162.74,162.68,13.1975]
[1717800044000,6.68,162.74,162.68,6.5175]
[1717800044280,2.2731,162.77,162.68,6.5175]
[1717800044487,2.273,162.78,162.67,6.68]
[1717800044669,6.68,162.73,162.67,6.68]
[1717800045170,2.273,162.78,162.67,6.68]
[1717800045399,6.68,162.74,162.68,6.68]
[1717800046914,2.273,162.78,162.68,6.68]
[1717800047413,2.2722,162.84,162.73,6.68]
[1717800047614,7.85112087,162.84,162.73,6.68]
[1717800047792,7.85112087,162.84,162.74,6.68]
[1717800047793,6.68,162.8,162.74,6.68]
[1717800049216,6.68,162.78,162.72,21.8473]
[1717800049389,6.68,162.78,162.72,15.1673]
[1717800049712,6.68,162.78,162.72,21.8473]
[1717800050191,6.68,162.77,162.72,15.1673]
[1717800050815,6.68,162.77,162.72,21.1864]
[1717800053006,24.02892087,162.84,162.71,6.68]
[1717800053007,649.9179,162.85,162.71,22.243]
[1717800053313,387.5,162.84,162.76,6.68]
[1717800053494,6.68,162.81,162.76,6.68]
[1717800053704,6.68,162.81,162.76,12.6991]
[1717800054118,6.68,162.81,162.76,28.923]
[1717800054916,6.68,162.82,162.76,28.923]
[1717800055123,387.5,162.84,162.76,28.923]
[1717800055425,6.68,162.83,162.77,6.68]
[1717800055613,387.5,162.84,162.77,6.68]
[1717800056121,6.68,162.83,162.77,6.68]
[1717800056300,387.5,162.84,162.77,6.68]
[1717800056497,394.18,162.84,162.78,6.68]
[1717800058018,394.18,162.84,162.77,6.68]
[1717800058602,6.68,162.83,162.76,22.243]
[1717800058803,387.5,162.84,162.76,22.243]
[1717800059003,6.68,162.83,162.76,22.243]
[1717800059720,6.68,162.82,162.76,22.243]
[1717800060203,6.68,162.81,162.76,28.923]
[1717800060417,6.68,162.8,162.76,6.0191]
[1717800060812,6.68,162.81,162.76,6.0191]
[1717800061133,6.68,162.81,162.75,6.68]
[1717800061425,6.68,162.81,162.74,6.68]
[1717800061604,2.2721,162.85,162.74,6.68]
[1717800061805,6.68,162.8,162.74,6.68]
[1717800062315,6.68,162.81,162.75,6.68]
[1717800063818,6.68,162.8,162.74,6.68]
[1717800064029,6.68,162.8,162.72,21.589]
[1717800064030,6.68,162.79,162.73,6.68]
[1717800064914,6.68,162.8,162.74,6.68]
[1717800065125,6.68,162.81,162.75,6.68]
[1717800066030,6.68,162.81,162.74,6.68]
[1717800066335,2.2719,162.86,162.76,6.68]
[1717800066642,47.2717,162.87,162.77,6.68]
[1717800066838,6.68,162.83,162.76,6.68]
[1717800067518,2.2718,162.86,162.76,6.68]
[1717800067710,6.68,162.82,162.76,6.68]
[1717800067923,2.2717,162.87,162.76,6.68]
[1717800068125,30.08132087,162.9,162.77,6.68]
[1717800068306,11.63132087,162.9,162.79,28.269]
[1717800068516,6.68,162.86,162.8,6.68]
[1717800069811,8.3238,162.9,162.8,6.68]
[1717800070326,6.68,162.86,162.8,6.68]
[1717800070744,2.2714,162.89,162.8,6.68]
[1717800070910,6.68,162.86,162.8,6.68]
[1717800072619,6.68,162.85,162.79,28.269]
[1717800074439,6.68,162.84,162.79,21.589]
[1717800074737,6.68,162.84,162.78,6.68]
[1717800074738,6.68,162.84,162.73,22.5187]
[1717800074930,6.68,162.82,162.73,22.5187]
[1717800075238,2.2718,162.87,162.73,22.5187]
[1717800075411,6.68,162.82,162.73,33.57487177]
[1717800077233,6.68,162.83,162.73,33.57487177]
[1717800077419,2.2716,162.88,162.79,6.68]
[1717800077618,2.2714,162.89,162.79,6.68]
[1717800077840,6.68,162.86,162.79,6.68]
[1717800078043,6.68,162.86,162.8,6.68]
[1717800078245,6.68,162.86,162.79,6.68]
[1717800083526,6.68,162.87,162.81,13.0396]
[1717800083746,6.68,162.87,162.81,6.3596]
[1717800083925,2.2715,162.89,162.81,6.3596]
[1717800087148,20.7215,162.89,162.78,6.68]
[1717800087361,6.68,162.83,162.77,6.68]
[1717800089764,18.45,162.88,162.77,6.68]
[1717800089937,6.68,162.83,162.77,6.68]
[1717800093557,6.68,162.83,162.76,22.5187]
[1717800093758,6.68,162.83,162.77,6.68]
[1717800095750,6.68,162.84,162.77,6.68]
[1717800095954,6.68,162.84,162.78,6.68]
[1717800096133,31.7897686,162.89,162.78,6.68]
[1717800096455,6.68,162.84,162.78,6.68]
[1717800097033,28.77738768,162.89,162.8,6.68]
[1717800097240,6.68,162.87,162.81,6.68]
[1717800098843,11.0682686,162.9,162.81,6.68]
[1717800099044,6.68,162.87,162.81,6.68]
[1717800099464,11.06793986,162.9,162.82,6.68]
[1717800099660,6.68,162.88,162.82,6.68]
[1717800101535,6.68,162.88,162.76,22.5187]
[1717800101740,6.68,162.87,162.81,6.68]
[1717800104176,6.68,162.89,162.82,6.68]
[1717800104465,28.77669836,162.91,162.82,6.68]
[1717800104671,6.68,162.89,162.83,6.68]